Cogmind - Beta 15 @@@ ROGUE MODE // 2025.05.18 @ 12:34:26 Player: Demo Result: Destroyed by U6-VNL(R) with Subdweller Laser Performance ------------- Evolutions (0) 0 Regions Visited (3) 600 Robots Destroyed (19) 95 Value Destroyed (347) 347 Prototype IDs (0) 0 Alien Tech Used (0) 0 Bonus (-23) -23 TOTAL SCORE: 1019 Bonus ------- Friendly Fire -23 Cogmind --------- Core Integrity 0/250 Matter 175/300 Energy 100/100 System Corruption 0% Temperature Cool (6) Movement Core (100) Ox1 Location -10/Subcaves Parts ------- > --- POWER (1) -------- (None) > --- PROPULSION (2) --- (None) > --- UTILITY (2) ------ (None) > --- WEAPON (2) ------- Grenade Launcher Mini Grenade Launcher > --- INVENTORY (5) ---- Mini Grenade Launcher Mini Grenade Launcher Peak State ------------ > --- POWER ------------ (None) > --- PROPULSION ------- Light Treads Light Treads > --- UTILITY ---------- Light Armor Plating > --- WEAPON ----------- Mini Grenade Launcher > --- INVENTORY -------- Grenade Launcher Mini Grenade Launcher Mini Grenade Launcher [Rating: 5] Favorites ----------- Power None Propulsion Light Treads Treads Light Treads Leg Aluminum Leg Utility Light Armor Plating Protection Light Armor Plating Weapon Mini Grenade Launcher Launcher Mini Grenade Launcher Build | -11 -10 -10 -10 ------- Run | Yrd Mat Min Sub Slots Evolved . | . . . . Power . | . . . . Propulsion . | . . . . Utility . | . . . . Weapon . | . . . . Parts Attached 7 | 2 1 4 . Power . | . . . . Engine . | . . . . Core . | . . . . Reactor . | . . . . Propulsion 3 | 2 . 1 . Treads 2 | 2 . . . Leg 1 | . . 1 . Wheel . | . . . . Hover . | . . . . Flight . | . . . . Utility 2 | . 1 1 . Device . | . . . . Storage . | . . . . Processor . | . . . . Hackware . | . . . . Protection 2 | . 1 1 . Artifact . | . . . . Weapon 2 | . . 2 . Energy Gun . | . . . . Energy Cannon . | . . . . Ballistic Gun . | . . . . Ballistic Cannon . | . . . . Launcher 2 | . . 2 . Special Weapon . | . . . . Impact Weapon . | . . . . Slashing Weapon . | . . . . Piercing Weapon . | . . . . Special Melee Weapon . | . . . . Unidentified Prototypes . | . . . . Parts Lost 5 | . . 2 3 Power . | . . . . Propulsion 3 | . . 1 2 Utility 2 | . . 1 1 Weapon . | . . . . Highest Loss Streak 2 | . . 1 2 To Critical Strikes . | . . . . Average Backups 3 | . 2 4 3 Power . | . . . . Propulsion . | . . . . Utility . | . 1 . . Weapon 3 | . 1 3 3 Tool/Special . | . . . . Unused Backups 5 | . 3 . 2 Power . | . . . . Propulsion . | . . . . Utility 3 | . 3 . . Weapon 2 | . . . 2 Tool/Special . | . . . . Average Slot Usage (%) 40 | . 37 42 35 Treads 17 | . 28 21 6 Leg 7 | . . 6 13 Protection 11 | . 9 14 6 Launcher 3 | . . . 9 Peak Build Rating 5 | 2 3 5 4 Average Rating 3 | 1 2 3 3 On Entrance 2 | . 2 3 3 Naked Turns . | . . . . Heaviest Build 6 | . 3 6 4 Greatest Support 3 | 3 3 3 3 Greatest Overweight (x) 1 | . . 1 1 Average Overweight (x) . | . . . . Largest Inventory Capacity 5 | 5 5 5 5 Average Capacity 5 | 5 5 5 5 Most Carried 5 | . 5 5 4 Average Carried 3 | . 3 4 3 Final Capacity 5 | 5 5 5 5 Final Carried 5 | . 5 4 2 Class Distribution -------------------- 100% | Mutant Dominant Class ---------------- Mutant | -10/Materials Mutant | -10/Mines Mutant | -10/Subcaves Resources | -11 -10 -10 -10 ----------- Run | Yrd Mat Min Sub Matter Collected 384 | 99 131 76 78 Remotely . | . . . . Salvage Created 192 | . . 67 125 Parts 35 | . . 20 15 Haulers Intercepted . | . . . . Recyclers Shooed . | . . . . Parts Field Recycled . | . . . . Retrieved Matter . | . . . . Parts Self-Destructed 11 | . . . 11 Prevented . | . . . . Kills | -11 -10 -10 -10 ------- Run | Yrd Mat Min Sub Combat Hostiles Destroyed 19 | . . 11 8 AOE 19 | . . 11 8 Classes Destroyed 4 | . . 2 2 Swarmer 14 | . . 10 4 Grunt 1 | . . 1 . Cobbler 1 | . . . 1 Subdweller 4 | . . . 4 Best Kill Streak 5 | . . 5 5 Combat Bots Only 5 | . . 5 5 Max Kills in Single Turn 3 | . . 3 2 Gunslinging . | . . . . Exploded 3 | . . 3 2 Melee . | . . . . Uniques/NPCs Destroyed . | . . . . Combat | -11 -10 -10 -10 -------- Run | Yrd Mat Min Sub Hostile Shots Fired 102 | . . 76 26 Missed 33 | . . 23 10 Hits 69 | . . 53 16 Projectile 69 | . . 53 16 Critical Strikes 1 | . . 1 . Damage Taken 840 | . . 589 251 Core 262 | . . 149 113 Absorbed by Shields . | . . . . Core Remaining (%) 100 | 100 . . . Volleys Fired 16 | . . 7 9 Largest 2 | . . 1 2 Hottest 60 | . . 30 60 Shots Fired 22 | . . 7 15 Gun . | . . . . Cannon . | . . . . Launcher 22 | . . 7 15 Special . | . . . . Kinetic . | . . . . Thermal . | . . . . Explosive 22 | . . 7 15 Electromagnetic . | . . . . Robot Hit Streak 3 | . . 3 1 Robot Miss Streak 3 | . . 2 3 Penetration Max . | . . . . Secondary Targets . | . . . . Shots Hit Robots 6 | . . 5 1 Core Hits 25 | . . 13 12 Critical Kills . | . . . . Critical Parts Destroyed . | . . . . Critical Strikes . | . . . . Melee Attacks . | . . . . Impact . | . . . . Slashing . | . . . . Piercing . | . . . . Sneak Attacks . | . . . . Combat Hostiles . | . . . . Follow-up Attacks . | . . . . Damage Inflicted 1570 | . . 708 862 Guns . | . . . . Cannons . | . . . . Explosions 1566 | . . 704 862 Melee . | . . . . Ramming 4 | . . 4 . Kinetic . | . . . . Thermal . | . . . . Explosive 1566 | . . 704 862 Electromagnetic . | . . . . Impact . | . . . . Slashing . | . . . . Piercing . | . . . . Highest Corruption . | . . . . Average Corruption . | . . . . Corruption Purged . | . . . . Corruption Blocked . | . . . . Overload Shots . | . . . . Overflow Damage 24 | . . 24 . Projectiles . | . . . . Explosions 24 | . . 24 . Melee . | . . . . Knockbacks . | . . . . Impact . | . . . . Kinetic . | . . . . Secondary . | . . . . Self-Inflicted Damage 154 | . . 143 11 Shots 5 | . . 4 1 Rammed 1 | . . 1 . Targets Rammed 1 | . . 1 . Kicked . | . . . . Crushed . | . . . . Highest Temperature 8 | . . 8 . Average Temperature 4 | . . 4 . Received Heat Transfer 117 | . . 63 54 Siege Activations . | . . . . Martial Activations . | . . . . Shielding Activations . | . . . . Robots Disrupted . | . . . . Combat Hostiles . | . . . . Robots Corrupted . | . . . . Combat Hostiles . | . . . . Parts Fried . | . . . . Impact Corruptions . | . . . . Robots Melted . | . . . . Combat Hostiles . | . . . . Parts Melted . | . . . . Heat Transferred . | . . . . Parts Sabotaged . | . . . . Parts Stolen . | . . . . Parts Stripped . | . . . . Power Chain Reactions . | . . . . Alert | -11 -10 -10 -10 ------- Run | Yrd Mat Min Sub Maximum Alert Level 1 | . . 1 . Low Security (%) 80 | 100 100 77 . Level 1 19 | . . 22 . Level 2 . | . . . . Level 3 . | . . . . Level 4 . | . . . . Level 5 . | . . . . High Security . | . . . . Max Security . | . . . . Peak Influence 243 | . . 243 . Initial . | . . . . Average 114 | . . 133 . Influence Increases 473 | . . 383 90 Destroy 0b10 Robot/C 300 | . . 220 80 Destroy Leader 60 | . . 50 10 Destroy Structure 53 | . . 53 . Lose Combat Pursuer 60 | . . 60 . Influence Decreases 434 | . . 238 196 Entered New Map 76 | . . . 76 Time Decay 288 | . . 198 90 Lost Part 50 | . . 20 30 Lost Ally 20 | . . 20 . Squads Dispatched . | . . . . Investigation . | . . . . Extermination . | . . . . Reinforcement . | . . . . Assault . | . . . . Garrison . | . . . . Intercept . | . . . . Searches Triggered . | . . . . Construction Impeded . | . . . . Haulers Reinforced . | . . . . Active Scanning Responses . | . . . . Cargo Convoy Interrupts . | . . . . Stealth | -11 -10 -10 -10 --------- Run | Yrd Mat Min Sub Distress Signals . | . . . . Communications Jammed . | . . . . Distress Signals . | . . . . Times Spotted 38 | . 1 20 17 Peak Tracking Total 7 | . 1 6 7 Tactical Retreats 6 | . . 3 3 Traps | -11 -10 -10 -10 ------- Run | Yrd Mat Min Sub Traps Triggered . | . . . . Indirectly . | . . . . Trap Hack Attempts . | . . . . Triggered . | . . . . Disarmed . | . . . . Reprogrammed . | . . . . Reused . | . . . . Traps Extracted . | . . . . Installed . | . . . . Triggered . | . . . . Machines | -11 -10 -10 -10 ---------- Run | Yrd Mat Min Sub Machines Disabled . | . . . . Max in Single Turn . | . . . . Machines Repaired . | . . . . Machines Dismantled . | . . . . Machines Sabotaged . | . . . . Overloaded Fab Kills . | . . . . Hacking | -11 -10 -10 -10 --------- Run | Yrd Mat Min Sub Machines Accessed . | . . . . Terminals . | . . . . Fabricators . | . . . . Repair Stations . | . . . . Recycling Units . | . . . . Scanalyzers . | . . . . Garrison Access . | . . . . Total Hacks . | . . . . Successful . | . . . . Failed . | . . . . Catastrophic . | . . . . Database Lockouts . | . . . . Manual . | . . . . Terminals . | . . . . Fabricators . | . . . . Repair Stations . | . . . . Recycling Units . | . . . . Scanalyzers . | . . . . Garrison Access . | . . . . Terminal Hacks . | . . . . Fabricator Hacks . | . . . . Repair Station Hacks . | . . . . Recycling Unit Hacks . | . . . . Scanalyzer . | . . . . Garrison Access Hacks . | . . . . Unauthorized Hacks . | . . . . Terminals . | . . . . Fabricators . | . . . . Repair Stations . | . . . . Recycling Units . | . . . . Scanalyzers . | . . . . Garrison Access . | . . . . Data Cores Recovered . | . . . . Used . | . . . . Hacking Detections . | . . . . Full Trace Events . | . . . . Feedback Events . | . . . . Feedback Blocked . | . . . . Robot Schematics Acquired . | . . . . Robots Built . | . . . . Authchips . | . . . . Time . | . . . . Total Robot Build Rating . | . . . . Part Schematics Acquired . | . . . . Parts Built . | . . . . Authchips . | . . . . Time . | . . . . Total Part Build Rating . | . . . . Parts Repaired . | . . . . Time . | . . . . Parts Recycled . | . . . . Recycled Matter . | . . . . Retrieved Matter . | . . . . Retrieved Components . | . . . . Parts Scanalyzed . | . . . . Part Schematics Acquired . | . . . . Parts Damaged . | . . . . Bothacking | -11 -10 -10 -10 ------------ Run | Yrd Mat Min Sub Used RIF Installer . | . . . . Robots Hacked . | . . . . Non-combat . | . . . . Combat . | . . . . Robot Hacks Applied . | . . . . Relay Couplers Released . | . . . . Fabnet Peak Effective % . | . . . . Robots Rewired . | . . . . Allies Hacked . | . . . . Hacks Repelled . | . . . . Allies | -11 -10 -10 -10 -------- Run | Yrd Mat Min Sub Total Allies 1 | . . 1 . Largest Group 1 | . . 1 . Highest-Rated Group 31 | . . 31 . Highest-Rated Ally 31 | . . 31 . Total Orders . | . . . . Ally Attacks 2 | . . 2 . Total Damage 20 | . . 20 . Kills . | . . . . Allies Corrupted . | . . . . Allies Melted . | . . . . Intel | -11 -10 -10 -10 ------- Run | Yrd Mat Min Sub Active Infowar (turns) . | . . . . Robot Analysis Total . | . . . . Derelict Logs Recovered 5 | . . 3 2 Drone Launches . | . . . . Drone Recoveries . | . . . . Exploration | -11 -10 -10 -10 ------------- Run | Yrd Mat Min Sub Turns Passed 668 | 15 52 405 196 Spaces Moved 1070 | 24 81 642 323 Core 1070 | 24 81 642 323 Treads . | . . . . Legs . | . . . . Wheels . | . . . . Hover . | . . . . Flight . | . . . . Fastest Speed 50 | 50 50 50 50 Average Speed 50 | 50 50 50 51 Slowest Speed 100 | 50 50 100 100 Overloaded Moves . | . . . . Propulsion Burnouts . | . . . . Robots Hopped . | . . . . Potential Cave-ins . | . . . . Cave-ins Triggered . | . . . . Exploration Rate (%) 37 | 2 19 91 36 Regions Visited 3 Branch Regions 2 Pre-discovered Areas 1 | . . . 1 Known Exits Taken . | . . . . Unknown Exits Taken 3 | 1 1 1 . Scrap Searched 4 | . . 1 3 Spaces Dug . | . . . . Terrain Destroyed 136 | . . 81 55 Melee . | . . . . Projectile . | . . . . AOE 136 | . . 81 55 Terrain Rammed . | . . . . Walls Destroyed . | . . . . Machines Disabled . | . . . . Actions | -11 -10 -10 -10 --------- Run | Yrd Mat Min Sub Total 1173 | 25 92 716 340 Wait 65 | . . 59 6 Move 1067 | 23 80 641 323 Hop . | . . . . Pick Up 8 | . 8 . . Fast Attach 4 | 2 1 1 . Attach 6 | . . 4 2 Detach 3 | . . 3 . Swap . | . . . . Drop 3 | . 3 . . Fire 16 | . . 7 9 Melee . | . . . . Ram 1 | . . 1 . Kick . | . . . . Crush . | . . . . Escape Stasis . | . . . . Rewire . | . . . . Trap . | . . . . Miscellaneous . | . . . . Route ------- -11/Scrapyard -10/Materials -10/Mines (discovered 2 exits: [*Mat] / [*Sub]) -10/Subcaves (discovered 2 exits: [*Mat x2]) History --------- Turn | Location | Event 8 | -11/Scrapyard | Discovered new exit (range 16) 16 | -11/Scrapyard | Entered Materials 62 | -10/Materials | Discovered new exit (range 10) 68 | -10/Materials | Entered Mines 75 | -10/Mines | Escorted by a lone wolf Derelict 84 | -10/Mines | Discovered new exit (range 12) 99 | -10/Mines | Learned Materials stockpile data 279 | -10/Mines | Core integrity fell below 50% 305 | -10/Mines | Build established: Mutant 417 | -10/Mines | Learned Materials security intel 418 | -10/Mines | Learned Materials garrison access intel 470 | -10/Mines | Discovered new exit (range 5) 473 | -10/Mines | Entered Subcaves 473 | -10/Subcaves | Discovered new exit (range 9) 475 | -10/Subcaves | Learned location of Storage (-7) 511 | -10/Subcaves | Discovered new exit (range 12) 582 | -10/Subcaves | Learned location of 1 exit from Materials 633 | -10/Subcaves | Ambushed by Subdwellers from Twisted Machinery 665 | -10/Subcaves | Core integrity fell below 20% 669 | -10/Subcaves | Destroyed by U6-VNL(R) with Subdweller Laser Last Messages --------------- 00560_ S-10 Pest destroyed. 00563_ Lgt. Assault Rifle fries itself beyond repair. 00582_ Acquired derelict log, extracted data. Data stored: Materials exits (x1). 00588_ Acquired 10 matter. 00633_ AM-J2N(O) cries out in pain. 00633_ AM-J2N(O) destroyed. 00633_ OG-8K4(R) angrily emerges from the Twisted Machinery. 00633_ S-10 Pest destroyed. 00634_ Acquired 10 matter. 00645_ OG-8K4(R) destroyed. 00648_ TZ-OGP(R) destroyed. 00653_ 5M-M2O(R): "MADSUB!" 00656_ The unstable cave ceiling collapses. 00656_ Aluminum Leg destroyed. 00656_ 5M-M2O(R) destroyed. 00659_ The unstable cave ceiling collapses. 00668_ 93-T45(R) destroyed. Map ----- +----------------------------------------------------+ | ?????????????????????????????????????????????????? | | ?????????????????????????????????????????????????? | | ?????????????????????????????????????????????????? | | ?????????????????????????????????????????????????? | | ?????????????????????????????????????????????????? | | ?????????????????????????????????????????????????? | | ?????????????????????????????????????????????????? | | ??????????????????????????????????????????????##?# | | ??????????????????????????????????????????????# ## | | ??????????????????????????????????????????###### | | ??????????????????????????????????#####??## ## | | ??????????????????????????????????# #### ## | | ???????????????????????????????????# ## | | ???????????????????????????????##### ## | | ?????????????????????###??????# # ## # | | ????????????????????## ##????# % #### | | ????????????????????# ###??# ## #?? | | ????????????????????# #?? ### ##?? | | ???????????????????## #?# ### #??# | | ???????????????????# ### ### #??? | | ???????????????????# ## R # ## ? | | ???????????????????#### % ### ## | | ??????????????????????# * ## #### ## ## | | ??????????????????????# ## #??# #?##? | | ??????????????????????# ## %#??# #???? | | ??????????????????????# *@ "## #??#####???? | | ??????????????????????# # """# #??????????? | | ??????????????????????# #### #??????????? | | ????????????????????? #??# ##??????????? | | ???????????????????? #???##???????????? | | ???????????????????# & ???????????????? | | ???????????????????# % ?????????????? | | ???????????????????# % """"????????????? | | ???????????????????# % # ###""????????????? | | ???????????????????# ### #????????????????? | | ??????????????????? ???# ####????????????????? | | ?????????????????? ????###???????????????????? | | ??????????????????# ??????????????????????????? | | ??????????????????# ???????????????????????????? | | ????????????????????? ???????????????????????????? | | ?????????????????????????????????????????????????? | | ?????????????????????????????????????????????????? | | ?????????????????????????????????????????????????? | | ?????????????????????????????????????????????????? | | ?????????????????????????????????????????????????? | | ?????????????????????????????????????????????????? | | ?????????????????????????????????????????????????? | | ?????????????????????????????????????????????????? | | ?????????????????????????????????????????????????? | | ?????????????????????????????????????????????????? | +----------------------------------------------------+ Best States ------------- Heat Dissipation 25 Energy Generation 5 Energy Capacity 100 Matter Stores 300 Matter Capacity 300 Sight Range 16 Terrain Scan Density 10 Armor Coverage 150 Evasion (%) 50 Item Schematics ----------------- None Robot Schematics ------------------ None Fabricated ------------ Nothing Repaired ---------- Nothing Alien Tech Used ----------------- None Achievements -------------- None Challenges ------------ None Game ------ Seed EtherialTechAmplifier Manual? 0 Play Time 00:07:17 Cumulative 174.4 hours Start 2025.05.18 @ 12:28:59 End 2025.05.18 @ 12:34:26 Sessions 1 Manual Loads 0 Difficulty Rogue Special Mode None Game No. 200 Rogue 200 Adventurer 0 Explorer 0 Win Type - Total 1 Types 1/0/0/0/0/0/0/0/0/0 Lore% 69 Gallery% 69 Achievement% 61 Wizard Run 0 Options --------- Layout 1 ASCII 0 Keyboard 0 Movement Numpad Keybinds 0 Fullscreen 1 Font 24/Smallcaps Map View 50x35 Zoom Use 0% Tactical HUD 1 Map Filters NONE Filters NONE Steam 1 RUN: 47650ced-5254-478d-a610-16ff48b9e049